bitfinex-derivatives/quotes_BTCF0:USTF0_20250811
["timestamp","ask_amount","ask_price","bid_price","bid_amount"]
[1754953813868,0.71682132,118880.0,118870.0,0.8821105]
[1754953815063,0.5615649,118880.0,118870.0,0.8821105]
[1754953815267,1.07762132,118880.0,118870.0,0.8821105]
[1754953816069,0.71682132,118880.0,118870.0,0.8821105]
[1754953819176,1.07762132,118880.0,118870.0,0.8821105]
[1754953820872,0.2007649,118880.0,118870.0,0.8821105]
[1754953821173,0.71682132,118880.0,118870.0,0.8821105]
[1754953822473,1.07762132,118880.0,118870.0,0.8821105]
[1754953822872,0.71682132,118880.0,118870.0,0.8821105]
[1754953823171,1.07762132,118880.0,118870.0,0.8821105]
[1754953824068,1.07762132,118880.0,118870.0,0.8669605]
[1754953824272,1.07762132,118880.0,118870.0,0.8835705]
[1754953825675,0.71682132,118880.0,118870.0,0.8835705]
[1754953827176,1.07762132,118880.0,118870.0,0.8835705]
[1754953832487,0.0841219,118870.0,118860.0,0.33536152]
[1754953832685,1.61279683,118870.0,118860.0,0.01688193]
[1754953832893,1.78105284,118870.0,118860.0,0.10101083]
[1754953833489,1.26499642,118870.0,118860.0,0.10101083]
[1754953834684,0.74894,118870.0,118860.0,0.10101083]
[1754953834890,1.26499642,118870.0,118860.0,0.10101083]
[1754953835591,1.16424942,118870.0,118860.0,0.10101083]
[1754953839789,0.6481926,118870.0,118860.0,0.65061725]
[1754953839985,1.16424902,118870.0,118860.0,0.65061725]
[1754953840187,0.08985209,118870.0,118860.0,0.63367725]
[1754953840386,0.13576209,118870.0,118860.0,1.01141725]
[1754953840683,0.04284209,118870.0,118860.0,1.52747367]
[1754953841180,0.04284209,118870.0,118860.0,0.49536083]
[1754953841491,0.04284209,118870.0,118860.0,1.01141725]
[1754953841993,0.08503209,118870.0,118860.0,1.01441725]
[1754953842885,0.09857209,118870.0,118860.0,1.01441725]
[1754953843087,0.12001209,118870.0,118860.0,1.01441725]
[1754953846494,0.13576209,118870.0,118860.0,1.01441725]
[1754953847892,0.13576209,118870.0,118860.0,1.53047367]
[1754953848888,0.12222209,118870.0,118860.0,1.53047367]
[1754953850394,0.08985209,118870.0,118860.0,1.53047367]
[1754953850592,0.01848209,118870.0,118860.0,1.53047367]
[1754953850893,0.0001,118880.0,118870.0,0.0841214]
[1754953851086,0.02456,118880.0,118870.0,1.66737732]
[1754953852097,0.02456,118880.0,118870.0,1.66837732]
[1754953852489,0.02456,118880.0,118870.0,2.02917732]
[1754953852683,0.02456,118880.0,118870.0,1.97182395]
[1754953852890,0.05769,118880.0,118870.0,1.97182395]
[1754953853286,0.05769,118880.0,118870.0,1.61102395]
[1754953853491,0.05769,118880.0,118870.0,1.97182395]
[1754953855392,0.02456,118880.0,118870.0,1.97182395]
[1754953860197,0.1881943,118880.0,118870.0,1.19030395]
[1754953860398,0.2024843,118880.0,118870.0,1.97146395]
[1754953862200,0.2024843,118880.0,118870.0,1.5127609]
[1754953863604,0.2024843,118880.0,118870.0,1.97146395]
[1754953866108,0.2024843,118880.0,118870.0,1.19030395]
[1754953866309,0.2024843,118880.0,118870.0,1.97122395]
[1754953870814,0.2024843,118880.0,118870.0,1.5125209]
[1754953871013,0.2024843,118880.0,118870.0,1.97122395]
[1754953871508,0.1693543,118880.0,118870.0,1.97122395]
[1754953871815,0.1550643,118880.0,118870.0,1.97122395]
[1754953873114,0.2024843,118880.0,118870.0,1.97122395]
[1754953874620,0.7185916,118880.0,118870.0,2.0286282]
[1754953881722,0.7185916,118880.0,118870.0,2.17886109]
[1754953882821,0.2024843,118880.0,118870.0,2.17886109]
[1754953883022,0.7185916,118880.0,118870.0,2.17886109]
[1754953884226,0.2024843,118880.0,118870.0,2.17886109]
[1754953885221,0.2025343,118880.0,118870.0,2.17886109]
[1754953891838,0.2025343,118880.0,118870.0,1.39794109]
[1754953892132,0.7186416,118880.0,118870.0,1.38100109]
[1754953892330,0.7186416,118880.0,118870.0,1.81710109]
[1754953893243,0.7196416,118880.0,118870.0,1.81710109]
[1754953893941,0.7196416,118880.0,118870.0,1.81610109]
[1754953894846,0.7186416,118880.0,118870.0,1.81610109]
[1754953895842,0.7186416,118880.0,118870.0,1.29999379]
[1754953896045,0.7196416,118880.0,118870.0,1.29999379]
[1754953896244,0.7196416,118880.0,118870.0,1.81610109]
[1754953897352,0.2035343,118880.0,118870.0,1.81610109]
[1754953898550,0.2025343,118880.0,118870.0,1.81610109]
[1754953898745,0.2025343,118880.0,118870.0,1.81710109]
[1754953900853,0.7186416,118880.0,118870.0,1.81710109]
[1754953901752,0.2025343,118880.0,118870.0,1.81710109]
[1754953908061,0.7186416,118880.0,118870.0,1.81710109]
[1754953908253,0.2025343,118880.0,118870.0,2.17790109]
[1754953910755,0.2025343,118880.0,118870.0,1.81710109]
[1754953910961,0.2025343,118880.0,118870.0,2.17790109]
[1754953911962,0.7186416,118880.0,118870.0,2.17790109]
[1754953912965,0.7186416,118880.0,118870.0,2.19467611]
[1754953914664,0.7186416,118880.0,118870.0,2.04444322]
[1754953915261,0.2025343,118880.0,118870.0,2.04444322]
[1754953915767,0.2025343,118880.0,118870.0,2.04344322]
[1754953915966,0.2025343,118880.0,118870.0,2.04444322]
[1754953916265,0.7186416,118880.0,118870.0,2.04444322]
[1754953916869,0.2025343,118880.0,118870.0,2.04444322]
[1754953917967,0.071,118880.0,118870.0,2.04444322]
[1754953918265,0.03458,118880.0,118870.0,2.04444322]
[1754953918666,0.03458,118880.0,118870.0,2.19467611]
[1754953920473,0.36226402,118920.0,118870.0,2.90334251]
[1754953920661,0.04214074,118940.0,118930.0,0.084079]
[1754953920966,1.63787074,118940.0,118930.0,1.4117363]
[1754953921157,0.08918074,118940.0,118930.0,1.4117363]
[1754953921358,0.02322,118960.0,118950.0,0.0840648]
[1754953921561,0.577601,118970.0,118950.0,0.0840648]
[1754953921562,0.3608,118970.0,118950.0,2.0959545]
[1754953921762,2.03232119,118970.0,118960.0,0.6170551]
[1754953921962,2.04796119,118970.0,118960.0,0.6328751]
[1754953922158,0.63201189,118970.0,118960.0,0.6328751]
[1754953922363,1.14811919,118970.0,118960.0,0.6159851]
[1754953922563,2.64811919,118970.0,118960.0,0.0998778]
[1754953922763,2.59022403,118970.0,118960.0,0.8785978]
[1754953923565,2.59322403,118970.0,118960.0,0.8785978]
[1754953924370,2.59322403,118970.0,118960.0,0.0840578]
[1754953924570,2.59322403,118970.0,118960.0,0.77868]
[1754953924764,0.0840578,118960.0,118950.0,0.1681251]
[1754953924961,1.02201994,118960.0,118950.0,0.9466051]
[1754953925465,1.02201994,118960.0,118950.0,0.1839451]
[1754953925671,0.66121994,118960.0,118950.0,0.9624251]
[1754953925870,1.02201994,118960.0,118950.0,0.9624251]
[1754953926671,1.02401994,118960.0,118950.0,0.9624251]
[1754953927273,1.00837994,118960.0,118950.0,0.9624251]
[1754953927474,0.1893678,118960.0,118950.0,0.9624251]
[1754953927771,0.2050078,118960.0,118950.0,0.9793151]
[1754953927967,0.2050078,118960.0,118950.0,0.98764867]
[1754953929776,0.5658078,118960.0,118950.0,0.9793151]
[1754953929984,0.66321994,118960.0,118950.0,0.9621851]
[1754953930170,1.02401994,118960.0,118950.0,0.0998803]
[1754953930371,1.02401994,118960.0,118950.0,0.77824]
[1754953930677,0.0840649,118950.0,118940.0,0.34481425]
[1754953930877,0.66122704,118950.0,118940.0,1.13887425]
[1754953931075,0.66122704,118950.0,118940.0,1.15576425]
[1754953932178,0.2030149,118950.0,118940.0,1.15576425]
[1754953932478,0.2040149,118950.0,118940.0,1.15576425]
[1754953934276,0.2040149,118950.0,118940.0,0.37752425]
[1754953934475,0.2040149,118950.0,118940.0,1.15560425]
[1754953943582,0.3437149,118950.0,118940.0,1.15560425]
[1754953943784,0.2040149,118950.0,118940.0,1.15560425]
[1754953944785,0.1890349,118950.0,118940.0,1.97461639]
[1754953945480,0.2038649,118950.0,118940.0,1.97461639]
[1754953946296,0.1890349,118950.0,118940.0,1.97461639]
[1754953946590,0.1553249,118950.0,118940.0,1.97461639]
[1754953950594,0.1902749,118950.0,118940.0,1.97461639]
[1754953950893,0.1902749,118950.0,118940.0,1.51640425]
[1754953951193,0.1902749,118950.0,118940.0,0.73832425]
[1754953951393,0.1902749,118950.0,118940.0,1.51572425]
[1754953951695,0.2051049,118950.0,118940.0,1.51572425]
[1754953955996,1.00928704,118950.0,118940.0,0.88566065]
[1754953956192,1.02411704,118950.0,118940.0,0.099892]
[1754953956393,1.02411704,118950.0,118940.0,0.877092]
[1754953956599,1.02411704,118950.0,118940.0,0.88550895]
[1754953957299,1.02411704,118950.0,118940.0,0.90239895]
[1754953958494,1.02411704,118950.0,118940.0,0.96124895]
[1754953958695,1.02411704,118950.0,118940.0,0.952832]
[1754953958894,1.02411704,118950.0,118940.0,0.935942]
[1754953961592,1.02411704,118950.0,118940.0,0.920002]
[1754953962299,0.5659049,118950.0,118940.0,0.920002]
[1754953962508,1.02411704,118950.0,118940.0,0.935252]
[1754953963595,0.5659049,118950.0,118940.0,0.935252]
[1754953963897,0.2051049,118950.0,118940.0,0.952142]
[1754953968410,0.1553249,118950.0,118940.0,0.952142]
[1754953968614,0.2051049,118950.0,118940.0,0.952142]
[1754953970911,0.0850649,118950.0,118940.0,1.41035414]
[1754953971212,0.001,118950.0,118940.0,1.41035414]
[1754953971414,0.0850649,118950.0,118940.0,0.952142]
[1754953971602,0.1076849,118950.0,118940.0,0.952142]
[1754953972308,0.1641849,118950.0,118940.0,0.952142]
[1754953973910,1.02080704,118950.0,118940.0,0.0741]
[1754953974111,1.81596364,118950.0,118940.0,0.05885]
[1754953974314,1.98557128,118950.0,118940.0,0.05885]
[1754953975007,1.98457128,118950.0,118940.0,0.05885]
[1754953975315,1.98657128,118950.0,118940.0,0.05885]
[1754953975813,1.98757128,118950.0,118940.0,0.05885]
[1754953976009,1.99618794,118950.0,118940.0,0.05885]
[1754953976913,1.99518794,118950.0,118940.0,0.05885]
[1754953977114,1.99718794,118950.0,118940.0,0.05885]
[1754953978716,2.35798794,118950.0,118940.0,0.05885]
[1754953983820,2.49768794,118950.0,118940.0,0.05885]
[1754953985615,2.32954393,118950.0,118940.0,0.05885]
[1754953987216,2.32954393,118950.0,118940.0,0.09245]
[1754953988308,0.0840791,118930.0,118920.0,0.2689475]
[1754953988614,1.01982124,118930.0,118920.0,0.2846475]
[1754953988816,1.01982124,118930.0,118920.0,0.3015375]
[1754953989213,1.01982124,118930.0,118920.0,0.30998739]
[1754953989413,1.01982124,118930.0,118920.0,0.3015375]
[1754953989815,0.5616091,118930.0,118920.0,0.3015375]
[1754953990014,1.01982124,118930.0,118920.0,0.3015375]
[1754953990211,1.02082124,118930.0,118920.0,0.3015375]
[1754953990822,1.02082124,118930.0,118920.0,0.31000173]
[1754953991721,1.02082124,118930.0,118920.0,0.3015375]
[1754953993923,1.16052124,118930.0,118920.0,0.3015375]
[1754953994126,1.02082124,118930.0,118920.0,0.3015375]
[1754953994625,1.02082124,118930.0,118920.0,0.2846475]
[1754953995325,1.02082124,118930.0,118920.0,0.2928839]
[1754953995526,1.02082124,118930.0,118920.0,0.2846475]
[1754953995729,0.5626091,118930.0,118920.0,0.2846475]
[1754953995918,1.02082124,118930.0,118920.0,0.2846475]
[1754953996521,1.02082124,118930.0,118920.0,0.1848619]
[1754953996720,0.0840861,118920.0,118910.0,0.26263609]
[1754953996922,1.49498051,118920.0,118910.0,0.02831]
[1754953997229,1.49498051,118920.0,118910.0,0.1124032]
[1754953997433,1.49498051,118920.0,118910.0,0.02831]
[1754953997624,0.98305837,118920.0,118910.0,0.1124032]
[1754953998227,1.03676837,118920.0,118910.0,0.1134032]
[1754954000130,0.57855623,118920.0,118910.0,0.1134032]
[1754954000328,1.03676837,118920.0,118910.0,0.1134032]
[1754954000530,1.03776837,118920.0,118910.0,0.1134032]
[1754954001231,0.98405837,118920.0,118910.0,0.1124032]
[1754954005937,0.62325837,118920.0,118910.0,0.1124032]
[1754954006143,1.34485837,118920.0,118910.0,0.1124032]
[1754954006537,0.88664623,118920.0,118910.0,0.1124032]
[1754954006844,1.34485837,118920.0,118910.0,0.1124032]
[1754954007543,0.88664623,118920.0,118910.0,0.1124032]
[1754954007738,0.88664623,118920.0,118910.0,0.1447032]
[1754954008145,0.88664623,118920.0,118910.0,0.1278132]
[1754954009242,0.16504623,118920.0,118910.0,0.1278132]
[1754954009547,0.16504623,118920.0,118910.0,0.60291534]
[1754954009743,0.16544623,118920.0,118910.0,1.37887534]
[1754954010343,0.16544623,118920.0,118910.0,0.9206632]
[1754954010648,0.16544623,118920.0,118910.0,1.37887534]
[1754954010948,0.16544623,118920.0,118910.0,1.37987534]
[1754954011550,0.98445837,118920.0,118910.0,0.1288132]
[1754954011745,0.98445837,118920.0,118910.0,0.1134032]
[1754954012049,0.62265837,118920.0,118910.0,0.1288132]
[1754954012848,0.16444623,118920.0,118910.0,0.1288132]
[1754954013050,0.16544623,118920.0,118910.0,0.1288132]
[1754954013251,0.16544623,118920.0,118910.0,0.1457032]
[1754954013455,0.52624623,118920.0,118910.0,0.1288132]
[1754954014043,0.16544623,118920.0,118910.0,0.1288132]
[1754954014343,0.16544623,118920.0,118910.0,0.1447032]
[1754954015149,0.16544623,118920.0,118910.0,0.1163932]
[1754954016049,0.16544623,118920.0,118910.0,0.0995032]
[1754954017250,0.52624623,118920.0,118910.0,0.0995032]
[1754954018049,0.98445837,118920.0,118910.0,0.0995032]
[1754954018353,0.98445837,118920.0,118910.0,0.0840932]
[1754954018653,0.52743623,118920.0,118910.0,0.0840932]
[1754954018851,0.98564837,118920.0,118910.0,0.0840932]
[1754954021953,0.0840932,118910.0,118900.0,0.51492999]
[1754954022154,0.92705534,118910.0,118900.0,1.29064999]
[1754954022749,0.92705534,118910.0,118900.0,1.1404171]
[1754954022942,0.0011,118920.0,118910.0,0.0840932]
[1754954023148,0.444872,118940.0,118930.0,0.59391824]
[1754954023348,0.0091,118940.0,118930.0,0.27121797]
[1754954023551,0.453972,118940.0,118930.0,0.27121797]
[1754954023751,0.468822,118940.0,118930.0,0.27121797]
[1754954023950,0.02395,118940.0,118930.0,0.27121797]
[1754954024552,0.02495,118940.0,118930.0,0.27121797]
[1754954025660,0.111022,118940.0,118930.0,0.27121797]
[1754954026559,0.93003414,118940.0,118930.0,0.27121797]
[1754954026756,0.93003414,118940.0,118930.0,0.10307237]
[1754954027061,0.0840791,118930.0,118920.0,0.5289684]
[1754954027262,0.92704124,118930.0,118920.0,0.1681684]
[1754954027566,0.0840861,118920.0,118910.0,0.2522781]
[1754954027857,0.0840932,118910.0,118900.0,0.87572919]
[1754954028063,0.1080432,118910.0,118900.0,0.87572919]
[1754954028561,0.1080432,118910.0,118900.0,0.7254963]
[1754954029363,0.1080432,118910.0,118900.0,0.7264963]
[1754954030058,0.1080432,118910.0,118900.0,0.7274963]
[1754954031765,0.1080432,118910.0,118900.0,0.3666963]
[1754954032063,0.56625534,118910.0,118900.0,0.2825966]
[1754954032468,0.1080432,118910.0,118900.0,0.2825966]
[1754954033066,0.1080432,118910.0,118900.0,0.74080874]
[1754954033756,0.1080432,118910.0,118900.0,1.10160874]
[1754954038670,0.0840932,118910.0,118900.0,1.10160874]
[1754954039079,0.6280307,118920.0,118910.0,0.0840932]
[1754954039360,0.2764407,118920.0,118910.0,0.0840932]
[1754954039566,0.2764407,118920.0,118910.0,0.8595732]
[1754954040168,0.1681784,118920.0,118910.0,1.31778534]
[1754954040564,0.1681784,118920.0,118910.0,0.8595732]
[1754954040766,0.1681784,118920.0,118910.0,1.31778534]
[1754954042065,0.1831218,118930.0,118920.0,0.0840862]
[1754954042261,0.1923318,118930.0,118920.0,0.46361526]
[1754954042561,0.63029126,118940.0,118920.0,1.1740812]
[1754954042768,0.65446126,118940.0,118930.0,0.0840791]
[1754954042967,0.29356126,118940.0,118930.0,0.0840791]
[1754954044071,0.29456126,118940.0,118930.0,0.0840791]
[1754954045269,0.7527734,118940.0,118930.0,0.0840791]
[1754954045572,0.7547734,118940.0,118930.0,0.0840791]
[1754954046772,0.29656126,118940.0,118930.0,0.0840791]
[1754954046972,0.7547734,118940.0,118930.0,0.0840791]
[1754954047669,0.29656126,118940.0,118930.0,0.0840791]
[1754954048570,0.7547734,118940.0,118930.0,0.0840791]
[1754954049075,0.003,118940.0,118930.0,1.31757124]
[1754954049380,0.003,118940.0,118930.0,1.67837124]
[1754954053876,0.01231,118940.0,118930.0,1.2201591]
[1754954054075,0.003,118940.0,118930.0,1.2201591]
[1754954054487,0.111242,118940.0,118930.0,1.2201591]
[1754954054789,0.93025414,118940.0,118930.0,0.8591591]
[1754954055791,0.111242,118940.0,118930.0,0.8591591]
[1754954055978,0.56945414,118940.0,118930.0,0.8591591]
[1754954056792,0.111242,118940.0,118930.0,0.8591591]
[1754954061492,0.111242,118940.0,118930.0,1.2199591]
[1754954061793,0.111242,118940.0,118930.0,0.8874491]
[1754954064194,0.250842,118940.0,118930.0,0.8874491]
[1754954064383,0.111242,118940.0,118930.0,0.8874491]
[1754954069197,0.111242,118940.0,118930.0,1.2482491]
[1754954069400,0.111242,118940.0,118930.0,0.8874491]
[1754954070601,0.93025414,118940.0,118930.0,0.8872491]
[1754954070799,0.93025414,118940.0,118930.0,0.1123691]
[1754954072188,0.92993414,118940.0,118930.0,0.1123691]
[1754954074301,1.06953414,118940.0,118930.0,0.1123691]
[1754954075000,0.611322,118940.0,118930.0,0.1123691]
[1754954075304,1.06953414,118940.0,118930.0,0.1123691]
[1754954075805,1.06011414,118940.0,118930.0,0.1123691]
[1754954077003,0.601902,118940.0,118930.0,0.1123691]
[1754954077201,1.06953414,118940.0,118930.0,0.1123691]
[1754954078705,0.611322,118940.0,118930.0,0.1123691]
[1754954078905,1.06953414,118940.0,118930.0,0.1123691]
[1754954082206,1.09367414,118940.0,118930.0,0.1123691]
[1754954085308,0.635462,118940.0,118930.0,0.1123691]
[1754954085502,1.10974414,118940.0,118930.0,0.1275491]
[1754954089510,1.10874414,118940.0,118930.0,0.1275491]
[1754954089711,0.74894414,118940.0,118930.0,0.1123691]
[1754954089911,0.650532,118940.0,118930.0,0.1278191]
[1754954090213,1.10874414,118940.0,118930.0,0.1278191]
[1754954091514,0.650532,118940.0,118930.0,0.1278191]
[1754954091811,1.10874414,118940.0,118930.0,0.1278191]
[1754954092313,0.650532,118940.0,118930.0,0.1278191]
[1754954092511,1.10874414,118940.0,118930.0,0.1278191]
[1754954093608,0.96914414,118940.0,118930.0,0.1278191]
[1754954095515,0.96914414,118940.0,118930.0,0.1123691]
[1754954099619,0.60834414,118940.0,118930.0,0.1123691]
[1754954099918,0.96914414,118940.0,118930.0,0.1123691]
[1754954100815,0.96914414,118940.0,118930.0,0.02829]
[1754954101714,0.0840791,118930.0,118920.0,0.01872906]
[1754954101914,2.12392516,118930.0,118920.0,0.01872906]
[1754954102114,2.12392516,118930.0,118920.0,0.00372906]
[1754954103218,1.2830191,118930.0,118920.0,0.00372906]
[1754954103414,1.70347213,118930.0,118920.0,0.00372906]
[1754954103615,1.84307213,118930.0,118920.0,0.00372906]
[1754954104811,0.0841003,118900.0,118890.0,0.26095562]
[1754954105016,1.09710713,118900.0,118880.0,0.3738732]
[1754954105216,0.90375043,118890.0,118880.0,0.3364532]
[1754954105413,0.92890043,118890.0,118880.0,0.2523399]
[1754954105624,0.92890043,118890.0,118880.0,0.1682266]
[1754954106825,0.92890043,118890.0,118880.0,0.1722266]
[1754954107219,0.92890043,118890.0,118880.0,0.1742266]
[1754954107419,0.92890043,118890.0,118880.0,0.1896766]
[1754954107619,0.9964788,118890.0,118880.0,0.2127266]
[1754954108327,0.9964788,118890.0,118880.0,0.2270966]
[1754954109236,2.19161183,118890.0,118880.0,0.006]
[1754954109526,2.19161183,118890.0,118880.0,0.002]
[1754954109727,2.19161183,118890.0,118880.0,0.005]
[1754954110320,1.7711588,118890.0,118880.0,0.005]
[1754954114432,2.19161183,118890.0,118880.0,0.005]
[1754954116429,1.7711588,118890.0,118880.0,0.005]
[1754954116632,2.19161183,118890.0,118880.0,0.005]
[1754954117332,1.7711588,118890.0,118880.0,0.005]
[1754954124340,1.78819632,118890.0,118880.0,0.005]
[1754954127641,2.14899632,118890.0,118880.0,0.005]
[1754954128639,2.28859632,118890.0,118880.0,0.005]
[1754954129033,2.70904935,118890.0,118880.0,0.005]
[1754954134945,2.70904935,118890.0,118880.0,0.003]
[1754954135144,2.73335928,118890.0,118880.0,0.003]
[1754954135645,2.73335928,118890.0,118880.0,0.002]
[1754954139942,0.0841285,118860.0,118850.0,0.18706208]
[1754954140146,0.56896153,118860.0,118850.0,0.08348268]
[1754954141349,0.56896153,118860.0,118850.0,0.16761828]
[1754954141644,0.56896153,118860.0,118850.0,0.17161828]
[1754954143343,0.56896153,118860.0,118850.0,0.17361828]
[1754954143542,0.56896153,118860.0,118850.0,0.17061828]
[1754954145147,0.56896153,118860.0,118850.0,0.16961828]
[1754954151155,0.53046153,118860.0,118850.0,0.16961828]
[1754954151451,0.56933153,118860.0,118850.0,0.16961828]
[1754954153049,0.00978,118860.0,118850.0,0.16961828]
[1754954153254,0.30861458,118870.0,118860.0,0.0841285]
[1754954153453,0.33424458,118870.0,118860.0,0.1454385]
[1754954153650,0.16598888,118870.0,118860.0,0.1454385]
[1754954153856,0.01726518,118870.0,118860.0,0.1454385]
[1754954154055,0.01726518,118870.0,118860.0,0.56589153]
[1754954154359,0.01726518,118870.0,118860.0,0.73414753]
[1754954154853,0.01726518,118870.0,118860.0,0.3146945]
[1754954155653,0.69683503,118880.0,118870.0,0.0841215]
[1754954155654,0.1683336,118880.0,118870.0,0.0841215]
[1754954155857,0.0841152,118880.0,118870.0,0.1454315]
[1754954156159,3.01797752,118890.0,118870.0,0.3136699]
[1754954156458,3.01797752,118890.0,118880.0,0.1207944]
[1754954156655,3.01787752,118890.0,118880.0,0.15395046]
[1754954158064,3.01987752,118890.0,118880.0,0.15395046]
[1754954160357,3.01987752,118890.0,118880.0,0.06983606]
[1754954160560,3.01987752,118890.0,118880.0,0.15395046]
[1754954161166,0.29371009,118890.0,118880.0,0.15395046]
[1754954161364,0.31944009,118890.0,118880.0,0.15395046]
[1754954161660,0.05166,118890.0,118880.0,0.15395046]
[1754954161870,0.01169,118890.0,118880.0,0.15395046]
[1754954162166,0.002,118890.0,118880.0,0.15395046]
[1754954162560,0.1100373,118890.0,118880.0,0.15395046]
[1754954162759,0.1507073,118890.0,118880.0,0.15395046]
[1754954163059,0.1497073,118890.0,118880.0,0.15395046]
[1754954163260,0.0656,118890.0,118880.0,0.15395046]
[1754954163460,0.0656,118890.0,118880.0,0.51475046]
[1754954164268,0.0646,118890.0,118880.0,0.51575046]
[1754954164463,2.23928197,118900.0,118890.0,0.0841073]
[1754954164464,1.5001,118900.0,118890.0,0.0841073]
[1754954164668,1.5841003,118900.0,118890.0,0.1087373]
[1754954164961,1.53887,118900.0,118890.0,0.1454173]
[1754954165666,1.53987,118900.0,118890.0,0.1454173]
[1754954166971,0.03987,118900.0,118890.0,0.1454173]
[1754954167266,0.1497003,118900.0,118890.0,0.1454173]
[1754954167462,0.1487003,118900.0,118890.0,0.1454173]
[1754954167670,0.56915333,118900.0,118890.0,0.1454173]
[1754954168262,0.56915333,118900.0,118890.0,0.1464173]
[1754954168757,0.48505303,118900.0,118890.0,0.1464173]
[1754954169363,0.1487003,118900.0,118890.0,0.1464173]
[1754954169573,0.56915333,118900.0,118890.0,0.1464173]
[1754954170773,0.1487003,118900.0,118890.0,0.1464173]
[1754954171076,0.56915333,118900.0,118890.0,0.1464173]
[1754954171467,0.1487003,118900.0,118890.0,0.1464173]
[1754954171667,0.56915333,118900.0,118890.0,0.1464173]
[1754954175785,0.48505303,118900.0,118890.0,0.1464173]
[1754954176573,0.48505303,118900.0,118890.0,0.9202573]
[1754954176777,0.56915333,118900.0,118890.0,0.9202573]
[1754954177075,0.0646,118900.0,118890.0,0.9202573]
[1754954177270,0.48505303,118900.0,118890.0,0.9202573]
[1754954178577,0.62465303,118900.0,118890.0,0.9202573]
[1754954178770,0.48505303,118900.0,118890.0,0.9202573]
[1754954178972,0.56915333,118900.0,118890.0,0.9202573]
[1754954181373,0.48505303,118900.0,118890.0,0.9202573]
[1754954183881,0.52664406,118910.0,118890.0,1.0884672]
[1754954184074,0.19028423,118910.0,118900.0,0.0841003]
[1754954184274,0.21504423,118910.0,118900.0,0.1476403]
[1754954184574,0.06368,118910.0,118900.0,0.1476403]
[1754954187382,0.56822623,118910.0,118900.0,0.1476403]
[1754954187576,0.56822623,118910.0,118900.0,0.1486403]
[1754954188280,0.56822623,118910.0,118900.0,0.0851003]
[1754954189184,0.1477732,118910.0,118900.0,0.0851003]
[1754954189384,0.56822623,118910.0,118900.0,0.0851003]
[1754954190784,0.56822623,118910.0,118900.0,0.0841003]
[1754954192083,0.56922623,118910.0,118900.0,0.0841003]
[1754954194386,0.56922623,118910.0,118900.0,0.0994403]
[1754954195687,2.06922623,118910.0,118900.0,0.1380703]
[1754954195878,2.06922623,118910.0,118900.0,0.1476403]
[1754954196484,1.56468,118910.0,118900.0,0.1476403]
[1754954196682,0.06468,118910.0,118900.0,0.1476403]
[1754954196985,0.001,118910.0,118900.0,0.56809333]
[1754954197785,0.001,118910.0,118900.0,0.78629333]
[1754954197786,1e-07,118910.0,118900.0,0.78629333]
[1754954198091,0.0174058,118920.0,118900.0,1.03858933]
[1754954198282,0.0562258,118920.0,118910.0,0.8961228]
[1754954198485,0.0809858,118920.0,118910.0,0.9210328]
[1754954198683,0.0809858,118920.0,118910.0,1.0892168]
[1754954198884,0.0421658,118920.0,118910.0,1.0892168]
[1754954199086,0.0809858,118920.0,118910.0,1.0892168]
[1754954200591,0.0809858,118920.0,118910.0,0.9210328]
[1754954201092,0.06368,118920.0,118910.0,0.9210328]
[1754954202087,0.56821873,118920.0,118910.0,0.9210328]
[1754954202889,0.56821873,118920.0,118910.0,0.8574928]
[1754954203092,0.56821873,118920.0,118910.0,0.0840928]
[1754954204996,0.56821873,118920.0,118910.0,0.1233628]
[1754954205182,0.56821873,118920.0,118910.0,0.1476328]
[1754954207694,0.56821873,118920.0,118910.0,0.1329328]
[1754954210092,0.56821873,118920.0,118910.0,0.1477728]
[1754954213698,2.06821873,118920.0,118910.0,0.1477728]
[1754954214296,1.6477657,118920.0,118910.0,0.1477728]
[1754954214595,2.06821873,118920.0,118910.0,0.1477728]
[1754954214796,2.06821873,118920.0,118910.0,0.1329328]
[1754954215094,2.06821873,118920.0,118910.0,0.0994328]
[1754954219788,2.06821873,118920.0,118910.0,0.0840928]
[1754954222406,2.65685616,118920.0,118910.0,0.0840927]
[1754954222594,0.0841069,118890.0,118880.0,1.37786453]
[1754954222794,0.56690993,118890.0,118880.0,0.26081263]
[1754954224900,0.56690993,118890.0,118880.0,0.26181263]
[1754954225500,0.56690993,118890.0,118880.0,0.26281263]
[1754954226290,0.56690993,118890.0,118880.0,0.26181263]
[1754954226496,0.1464569,118890.0,118880.0,0.26181263]
[1754954226802,0.1464569,118890.0,118880.0,0.30033263]
[1754954226991,0.1464569,118890.0,118880.0,0.32319263]
[1754954227193,0.56690993,118890.0,118880.0,0.32319263]
[1754954229095,2.06690993,118890.0,118880.0,0.32319263]
[1754954234010,0.1464569,118890.0,118880.0,0.74779718]
[1754954234201,0.1464569,118890.0,118880.0,0.76263718]
[1754954234802,0.1464569,118890.0,118880.0,0.34218415]
[1754954235203,0.1464569,118890.0,118880.0,0.34318415]
[1754954235609,0.1464569,118890.0,118880.0,0.34418415]
[1754954237409,0.1464569,118890.0,118880.0,0.34357116]
[1754954242713,0.56690993,118890.0,118880.0,0.34357116]
[1754954243710,0.56690993,118890.0,118880.0,0.30537116]
[1754954243918,0.56690993,118890.0,118880.0,0.28119116]
[1754954244716,0.56690993,118890.0,118880.0,0.28019116]
[1754954245015,0.56690993,118890.0,118880.0,0.34518116]
[1754954247720,0.06235,118890.0,118880.0,0.34418116]
[1754954247914,0.56690993,118890.0,118880.0,0.34518116]
[1754954248218,0.1464569,118890.0,118880.0,0.34518116]
[1754954251018,0.06235,118890.0,118880.0,0.34518116]
[1754954252119,0.1464569,118890.0,118880.0,0.34518116]
[1754954254022,0.56690993,118890.0,118880.0,0.34518116]
[1754954254321,0.56690993,118890.0,118880.0,0.33072116]
[1754954254619,0.56690993,118890.0,118880.0,0.34518116]
[1754954257726,0.1464569,118890.0,118880.0,0.34518116]
[1754954257925,0.06235,118890.0,118880.0,0.34518116]
[1754954258627,0.1464569,118890.0,118880.0,0.34518116]
[1754954259329,0.06235,118890.0,118880.0,0.34518116]
[1754954260231,0.1464569,118890.0,118880.0,0.34518116]
[1754954261528,0.04826,118890.0,118880.0,0.34518116]
[1754954261730,0.06296,118890.0,118880.0,0.34518116]
[1754954263728,0.20256,118890.0,118880.0,0.34518116]
[1754954264031,0.06296,118890.0,118880.0,0.34518116]
[1754954264933,0.06296,118890.0,118880.0,0.4956553]
[1754954269438,0.1470669,118890.0,118880.0,0.4956553]
[1754954270437,0.1470669,118890.0,118880.0,0.34518116]
[1754954271436,0.1470669,118890.0,118880.0,0.4956553]
[1754954272238,0.56751993,118890.0,118880.0,0.4956553]
[1754954274439,0.56751993,118890.0,118880.0,0.4938253]
[1754954275849,0.58443295,118890.0,118880.0,1.02720077]
[1754954276050,0.58443295,118890.0,118880.0,0.10448663]
[1754954276548,0.58443295,118890.0,118880.0,0.11295914]
[1754954276736,1.11036428,118890.0,118880.0,0.11295914]
[1754954277349,1.11036428,118890.0,118880.0,0.11195914]